bitfinex-derivatives/quotes_SOLF0:USTF0_20230102
["timestamp","ask_amount","ask_price","bid_price","bid_amount"]
[1672678385314,52.28640651,11.115,11.109,7.75502583]
[1672678385944,7.24,11.114,11.109,7.75502583]
[1672678386360,7.24,11.114,11.108,7.75502583]
[1672678388885,2.22,11.11,11.108,7.75502583]
[1672678389095,2.22,11.11,11.107,0.06762957]
[1672678389409,50.0,11.108,11.105,0.06147865]
[1672678389619,5.0,11.107,11.103,0.06640704]
[1672678391302,5.06869922,11.109,11.103,0.06640704]
[1672678392247,0.06869922,11.109,11.103,0.06640704]
[1672678392563,50.0,11.105,11.103,0.06640704]
[1672678392772,50.0,11.105,11.102,2.24]
[1672678394978,50.0,11.105,11.093,8.96]
[1672678394979,5.0,11.104,11.083,8.95]
[1672678395293,5.0,11.104,11.098,2.24]
[1672678395917,5.0,11.104,11.099,7.15866309]
[1672678398028,52.28289943,11.105,11.099,7.15866309]
[1672678400341,5.0,11.104,11.099,7.15866309]
[1672678402443,2.28289943,11.105,11.099,7.15866309]
[1672678404439,52.28289943,11.105,11.099,7.15866309]
[1672678406856,2.24,11.103,11.099,7.15866309]
[1672678407067,2.24,11.1,11.092,2.24]
[1672678407277,2.24,11.1,11.089,5.0]
[1672678407278,2.22,11.101,11.094,2.23]
[1672678407808,2.22,11.101,11.095,7.16609414]
[1672678408112,2.3035889,11.102,11.096,5.0]
[1672678408535,2.3035889,11.102,11.097,7.16609414]
[1672678410432,2.3035889,11.102,11.096,7.16609414]
[1672678414318,2.24,11.098,11.094,0.0127926]
[1672678414524,2.24,11.096,11.094,0.0127926]
[1672678414741,2.24,11.096,11.089,2.23]
[1672678414944,2.22,11.098,11.091,2.24]
[1672678415365,2.28249719,11.098,11.091,2.3014258]
[1672678416001,0.06249719,11.098,11.092,2.23]
[1672678416421,0.06249719,11.098,11.093,2.24]
[1672678416632,0.06249719,11.098,11.096,2.24]
[1672678417053,0.06285968,11.101,11.096,2.24]
[1672678417260,5.07060975,11.102,11.097,6.05995025]
[1672678417681,0.07060975,11.102,11.097,6.05995025]
[1672678427883,2.22,11.103,11.102,0.16643023]
[1672678434709,50.0,11.104,11.102,0.16643023]
[1672678435661,50.0,11.104,11.102,3.023e-05]
[1672678435977,5.0,11.103,11.102,3.023e-05]
[1672678438178,9.47,11.103,11.102,3.023e-05]
[1672678442065,102.132,11.104,11.102,3.023e-05]
[1672678443223,52.132,11.104,11.102,3.023e-05]
[1672678443852,4.58557952,11.106,11.102,3.023e-05]
[1672678445328,50.0,11.104,11.102,3.023e-05]
[1672678445541,5.0,11.103,11.102,3.023e-05]
[1672678446059,50.0,11.104,11.102,3.023e-05]
[1672678446796,0.19361997,11.102,11.099,0.07124764]
[1672678447004,0.19361997,11.102,11.098,6.06137249]
[1672678449636,0.19361997,11.102,11.1,4.51]
[1672678453214,0.19361997,11.102,11.101,4.51]
[1672678457938,0.19361997,11.102,11.1,4.51]
[1672678462138,0.19361997,11.102,11.101,4.52]
[1672678462985,1.997e-05,11.102,11.101,4.52]
[1672678463196,50.0,11.104,11.102,5.0]
[1672678463720,50.0,11.104,11.101,4.52]
[1672678465083,0.06842283,11.105,11.101,4.52]
[1672678465294,4.52,11.117,11.104,4.52]
[1672678465510,4.52,11.117,11.108,4.51]
[1672678465823,4.52,11.117,11.109,5.0]
[1672678466348,4.58997563,11.117,11.109,5.06654962]
[1672678470545,4.58997563,11.117,11.109,0.06654962]
[1672678470864,4.52,11.116,11.109,0.06654962]
[1672678471700,4.52,11.116,11.103,50.0]
[1672678471916,4.52,11.109,11.1,4.51]
[1672678472127,4.49,11.107,11.098,10.56584226]
[1672678472441,4.49,11.107,11.099,6.05584226]
[1672678472442,5.0,11.106,11.099,6.05584226]
[1672678472862,5.06816582,11.106,11.099,6.11927434]
[1672678474124,9.58816582,11.106,11.099,6.11927434]
[1672678474439,9.58816582,11.106,11.099,0.06343208]
[1672678475698,4.58816582,11.106,11.099,0.06343208]
[1672678476744,4.52,11.104,11.099,0.06343208]
[1672678477484,4.47,11.103,11.099,0.06343208]
[1672678482631,4.49,11.104,11.099,0.06343208]
[1672678491567,4.58816582,11.106,11.099,0.06343208]
[1672678492194,0.06816582,11.106,11.101,4.52]
[1672678492405,0.06816582,11.106,11.102,4.51]
[1672678496607,0.06816582,11.106,11.101,4.52]
[1672678509955,0.06816582,11.106,11.099,0.06343208]
[1672678511107,4.49,11.105,11.099,0.06343208]
[1672678511844,4.52,11.104,11.099,0.06343208]
[1672678512468,4.47,11.1,11.087,4.52]
[1672678512782,4.52,11.096,11.087,4.52]
[1672678513208,4.52,11.096,11.088,6.07092557]
[1672678513525,4.58075476,11.096,11.088,6.13479716]
[1672678520247,4.51,11.094,11.088,6.13479716]
[1672678520564,4.51,11.094,11.088,0.06387159]
[1672678522349,4.55075476,11.096,11.088,0.06387159]
[1672678522874,4.55075476,11.096,11.088,6.13479716]
[1672678523296,0.06075476,11.096,11.088,10.65479716]
[1672678523925,0.06075476,11.096,11.089,6.07092557]
[1672678524134,0.06075476,11.096,11.09,5.0]
[1672678524662,0.06075476,11.096,11.09,9.48]
[1672678525815,0.06075476,11.096,11.09,4.48]
[1672678540204,0.06075476,11.096,11.088,0.06387159]
[1672678540205,0.06075476,11.096,11.091,4.51]
[1672678540947,0.06075476,11.096,11.089,4.52]
[1672678541472,0.06075476,11.096,11.09,5.60514796]
[1672678541684,0.06075476,11.096,11.091,5.0]
[1672678542732,0.06075476,11.096,11.089,4.52]
[1672678543146,0.06075476,11.096,11.09,5.60587836]
[1672678543363,0.06075476,11.096,11.091,5.0]
[1672678543994,0.06075476,11.096,11.092,4.51]
[1672678544205,0.06075476,11.096,11.093,4.51]
[1672678544414,57.3618,11.102,11.093,4.51]
[1672678544626,0.06222187,11.098,11.096,4.48]
[1672678544834,0.07095108,11.101,11.096,4.48]
[1672678545050,4.52,11.105,11.096,4.48]
[1672678545051,0.06205521,11.102,11.097,5.0]
[1672678545260,0.07100405,11.103,11.098,4.52]
[1672678545573,0.06283569,11.104,11.098,4.52]
[1672678545776,4.52,11.107,11.098,4.52]
[1672678545991,0.07103996,11.106,11.098,4.52]
[1672678546625,0.07103996,11.106,11.097,5.06762894]
[1672678546626,0.07103996,11.106,11.099,4.51]
[1672678547570,0.07103996,11.106,11.101,4.51]
[1672678548199,0.07103996,11.106,11.102,4.51]
[1672678550305,0.01040041,11.106,11.102,4.51]
[1672678551035,0.01040041,11.106,11.101,4.48]
[1672678551245,0.01040041,11.106,11.1,0.06691188]
[1672678557344,4.47,11.105,11.1,0.06691188]
[1672678557558,4.51,11.102,11.1,0.06691188]
[1672678557871,4.51,11.102,11.097,0.06591846]
[1672678558081,4.51,11.102,11.096,0.06615227]
[1672678558294,4.51,11.101,11.095,0.06543537]
[1672678558502,4.49,11.099,11.095,0.06543537]
[1672678567013,4.47,11.102,11.095,0.06543537]
[1672678569429,0.06111259,11.103,11.095,0.06543537]
[1672678569430,0.06111259,11.103,11.098,4.48]
[1672678569639,0.06111259,11.103,11.099,4.52]
[1672678569850,0.06111259,11.103,11.1,5.0]
[1672678570165,52.6413049,11.105,11.1,5.0]
[1672678572373,52.6413049,11.105,11.099,4.52]
[1672678574477,0.0698049,11.105,11.099,4.52]
[1672678574686,0.0698049,11.105,11.102,4.52]
[1672678575004,0.07106253,11.107,11.102,4.52]
[1672678575210,0.06660705,11.108,11.102,4.52]
[1672678576579,0.06660705,11.108,11.103,4.48]
[1672678577205,0.06660705,11.108,11.104,4.51]
[1672678577736,0.06660705,11.108,11.106,4.48]
[1672678577940,0.06124209,11.111,11.107,4.52]
[1672678578151,0.06013339,11.113,11.108,5.0]
[1672678578364,0.06735824,11.114,11.108,5.0]
[1672678580143,0.06735824,11.114,11.109,4.51]
[1672678584456,0.06735824,11.114,11.107,4.58812322]
[1672678584767,4.49,11.111,11.107,0.06812322]
[1672678584983,5.0,11.11,11.107,0.06812322]
[1672678585194,5.0,11.11,11.105,0.06030678]
[1672678585509,4.49,11.111,11.104,0.06255455]
[1672678585510,4.55998136,11.111,11.104,0.06255455]
[1672678589211,0.06998136,11.111,11.105,4.51]
[1672678589627,0.06998136,11.111,11.106,5.0]
[1672678595414,0.06998136,11.111,11.108,4.51]
[1672678595627,0.06080473,11.113,11.108,4.51]
[1672678595833,0.07064621,11.114,11.108,4.51]
[1672678596142,0.0673647,11.115,11.108,4.51]
[1672678599848,4.5873647,11.115,11.107,0.06080657]
[1672678607269,0.0673647,11.115,11.112,4.51]
[1672678607482,4.49,11.122,11.115,0.10699646]
[1672678608321,4.49,11.122,11.115,0.17399905]
[1672678608525,4.56025531,11.122,11.115,0.17399905]
[1672678612300,4.49,11.12,11.115,0.17399905]
[1672678618922,4.52,11.119,11.11,4.52]
[1672678619134,4.47,11.117,11.108,4.52]
[1672678619970,0.06490398,11.116,11.109,0.07138983]
[1672678626379,0.00333407,11.109,11.108,4.52]
[1672678627435,0.06210885,11.116,11.109,5.067148]
[1672678628381,0.06210885,11.116,11.111,4.52]
[1672678629853,0.06210885,11.116,11.114,4.52]
[1672678630063,0.06506749,11.119,11.114,4.52]
[1672678630273,5.06516168,11.12,11.114,4.52]
[1672678630582,0.06516168,11.12,11.114,4.52]
[1672678636051,0.06516168,11.12,11.113,0.06870213]
[1672678637413,4.49,11.118,11.113,0.06870213]
[1672678637628,9.47,11.117,11.113,2.13e-06]
[1672678639417,4.49,11.114,11.113,2.13e-06]
[1672678639624,4.49,11.114,11.11,0.06787749]
[1672678639829,4.52,11.112,11.108,0.07069876]
[1672678640042,4.52,11.112,11.106,0.0626404]
[1672678640254,4.52,11.112,11.105,0.0653441]
[1672678656650,0.06572219,11.113,11.105,4.5853441]
[1672678658226,4.58572219,11.113,11.105,0.0653441]
[1672678658649,4.58572219,11.113,11.105,5.65179156]
[1672678660115,4.58572219,11.113,11.105,0.0653441]
[1672678660535,4.58572219,11.113,11.105,5.65173796]
[1672678661382,4.58572219,11.113,11.105,7.90173796]
[1672678661383,2.26,11.112,11.105,7.90173796]
[1672678662009,2.26,11.112,11.105,2.3153441]
[1672678663692,0.06572219,11.113,11.107,2.26]
[1672678676095,2.24,11.112,11.105,2.3153441]
[1672678681874,0.06572219,11.113,11.107,2.24]
[1672678688393,2.30572219,11.113,11.105,2.3253441]
[1672678720127,2.32572219,11.113,11.106,2.25]
[1672678727483,2.26,11.118,11.111,2.24]
[1672678728531,2.32350456,11.118,11.111,2.30141034]
[1672678743034,2.24,11.117,11.111,0.06141034]
[1672678743346,5.0,11.111,11.102,2.25]
[1672678743551,2.25,11.11,11.102,2.25]
[1672678744189,2.32082233,11.11,11.102,2.31624837]
[1672678760170,2.25,11.108,11.102,0.06624837]
[1672678763324,2.26,11.106,11.102,0.06624837]
[1672678770792,2.26,11.106,11.102,4.837e-05]
[1672678771002,2.24,11.104,11.102,4.837e-05]
[1672678771214,2.24,11.104,11.1,5.59203708]
[1672678771423,2.24,11.104,11.098,5.59203708]
[1672678775100,2.24,11.103,11.098,5.59203708]
[1672678775730,2.24,11.103,11.097,0.06015347]
[1672678775731,2.26,11.104,11.097,2.32015347]
[1672678776151,2.26,11.104,11.098,5.59203708]
[1672678776365,2.26,11.104,11.099,5.0]
[1672678776994,2.26,11.104,11.1,5.59203708]
[1672678779303,2.26,11.104,11.098,5.59203708]
[1672678779614,2.26,11.104,11.099,5.0]
[1672678780349,2.26,11.104,11.1,5.59203708]
[1672678781618,0.06477009,11.105,11.101,2.26]
[1672678781825,0.06477009,11.105,11.102,5.0]
[1672678782140,0.06363235,11.107,11.102,5.0]
[1672678782345,2.31363235,11.107,11.1,0.06976438]
[1672678783087,2.31363235,11.107,11.1,5.66195065]
[1672678784351,2.31363235,11.107,11.1,0.06976438]
[1672678785398,0.06363235,11.107,11.101,2.26]
[1672678785610,0.06363235,11.107,11.103,2.25]
[1672678785817,52.9256,11.112,11.107,0.08770829]
[1672678789916,0.06992668,11.113,11.107,2.33770829]
[1672678803159,0.06992668,11.113,11.108,2.25]
[1672678805472,0.06992668,11.113,11.107,0.08770829]
[1672678805473,0.06992668,11.113,11.11,2.25]
[1672678805683,0.06896605,11.115,11.11,2.25]
[1672678805893,0.06378725,11.116,11.11,2.25]
[1672678808203,0.06378725,11.116,11.109,2.31722538]
[1672678808204,2.30378725,11.116,11.109,2.31722538]
[1672678819671,0.06378725,11.116,11.112,2.25]
[1672678819885,2.24,11.12,11.116,0.12450458]
[1672678826696,5.0,11.119,11.116,4.58e-06]
[1672678828802,7.24,11.12,11.116,4.58e-06]
[1672678830161,2.26,11.119,11.116,4.58e-06]
[1672678834366,7.26,11.12,11.116,4.58e-06]
[1672678834574,2.26,11.12,11.116,4.58e-06]
[1672678838575,2.25,11.119,11.116,4.58e-06]
[1672678838785,5.0,11.118,11.116,4.58e-06]
[1672678841725,2.25,11.119,11.116,4.58e-06]
[1672678886186,2.26,11.118,11.116,4.58e-06]
[1672678889656,2.25,11.12,11.116,4.58e-06]
[1672678889976,2.26,11.129,11.119,2.26]
[1672678890184,55.585,11.129,11.123,2.26]
[1672678893225,2.25,11.125,11.122,0.06868808]
[1672678893439,2.24,11.124,11.12,0.06351782]
[1672678893649,2.24,11.124,11.118,0.06137426]
[1672678893650,2.24,11.122,11.118,0.06137426]
[1672678893860,5.0,11.121,11.118,0.06137426]
[1672678894071,5.0,11.121,11.117,2.25]
[1672678894385,2.24,11.122,11.117,2.25]
[1672678895756,0.0714791,11.123,11.118,2.26]
[1672678896808,0.0714791,11.123,11.12,2.26]
[1672678897013,53.63011598,11.125,11.12,2.26]
[1672678899537,53.63011598,11.125,11.119,0.0713054]
[1672678899538,51.39011598,11.125,11.121,2.25]
[1672678901745,0.06341598,11.125,11.121,2.25]
[1672678906052,0.06341598,11.125,11.12,2.24]
[1672678909415,0.06341598,11.125,11.119,2.3113054]
[1672678911201,2.25,11.123,11.116,2.25]
[1672678911410,2.23,11.121,11.113,2.24]
[1672678912250,2.29433893,11.121,11.113,2.24]
[1672678912462,2.29433893,11.121,11.113,2.3001097]
[1672678915717,2.23,11.118,11.113,0.0601097]
[1672678928855,2.25,11.116,11.113,9.7e-06]
[1672678929061,2.25,11.115,11.107,2.25]
[1672678929589,2.25,11.115,11.108,5.58025951]
[1672678929800,2.25,11.115,11.108,5.6472553]
[1672678930009,2.31638611,11.115,11.108,5.6472553]
[1672678931902,2.24,11.11,11.103,2.24]
[1672678932115,7.23,11.109,11.101,2.25]
[1672678933163,7.29953375,11.109,11.101,2.31988861]
[1672678933372,2.23,11.102,11.089,2.25]
[1672678933580,2.23,11.098,11.091,2.25]
[1672678933997,2.25,11.099,11.092,2.24]
[1672678934319,0.06568234,11.099,11.095,2.24]
[1672678939679,0.06568234,11.099,11.094,2.24]
[1672678950181,0.06568234,11.099,11.095,2.25]
[1672678950397,2.23,11.104,11.099,0.15457792]
[1672678951237,4.52,11.105,11.099,0.15457792]
[1672678955537,4.49,11.104,11.099,0.15457792]
[1672678959746,5.0,11.1,11.098,0.06288328]
[1672678959951,5.0,11.1,11.096,5.21249019]
[1672678960375,5.0,11.1,11.095,5.27777181]
[1672678961217,4.52,11.101,11.095,0.06528162]
[1672678961533,4.49,11.099,11.095,0.06528162]
[1672678968468,4.49,11.099,11.095,8.162e-05]
[1672678968891,5.0,11.098,11.091,5.31745517]
[1672678970042,5.06941685,11.098,11.091,5.38736978]
[1672678971831,0.06941685,11.098,11.091,5.38736978]
[1672678972041,0.06941685,11.098,11.092,4.49]
[1672678972249,0.06941685,11.098,11.093,5.0]
[1672678973509,0.06941685,11.098,11.092,4.49]
[1672678978555,0.06941685,11.098,11.091,4.58991461]
[1672678991266,0.06941685,11.098,11.091,2.32991461]
[1672679000830,0.06941685,11.098,11.084,55.0]
[1672679000831,2.25,11.092,11.084,52.26]
[1672679001039,2.25,11.09,11.084,50.0]
[1672679001460,2.25,11.09,11.085,5.31892815]
[1672679001881,2.32834946,11.091,11.085,5.31892815]
[1672679002197,0.06834946,11.091,11.088,2.26]
[1672679002511,0.06395473,11.093,11.088,2.26]
[1672679002718,0.06545624,11.094,11.089,5.31892815]
[1672679002929,0.06963124,11.095,11.089,5.31892815]
[1672679007978,2.25,11.094,11.089,5.31892815]
[1672679008293,2.25,11.094,11.088,5.31892815]
[1672679009238,2.25,11.094,11.089,5.0]
[1672679009656,2.25,11.094,11.09,5.31892815]
[1672679011131,2.25,11.094,11.088,5.31892815]
[1672679011336,2.25,11.094,11.089,5.0]
[1672679011865,2.25,11.094,11.09,5.31892815]
[1672679013232,2.25,11.094,11.088,5.31892815]
[1672679017016,0.06963124,11.095,11.089,2.26]
[1672679017229,0.06963124,11.095,11.091,2.26]
[1672679033519,2.26,11.1,11.095,0.05166739]
[1672679033940,55.4901,11.105,11.097,2.26]
[1672679034150,55.4901,11.105,11.098,5.0]
[1672679034464,55.55926609,11.105,11.098,5.07062396]
[1672679038566,2.31916609,11.105,11.098,5.07062396]
[1672679039925,2.31916609,11.105,11.098,0.07062396]
[1672679046226,2.18490463,11.105,11.098,0.07062396]
[1672679074075,2.24,11.103,11.098,0.07062396]
[1672679074286,2.26,11.101,11.098,0.07062396]
[1672679074600,2.26,11.101,11.097,5.31067318]
[1672679075126,2.26,11.101,11.096,0.06292512]
[1672679075649,2.26,11.101,11.096,5.3735983]
[1672679081534,2.26,11.101,11.096,5.179166]
[1672679082160,2.32693382,11.103,11.096,7.439166]
[1672679082587,2.32693382,11.103,11.096,7.50841978]
[1672679082789,2.32693382,11.103,11.097,5.179166]
[1672679083106,2.32693382,11.103,11.098,5.0]
[1672679086683,2.32693382,11.103,11.096,2.32925378]
[1672679087421,2.32693382,11.103,11.098,5.0]
[1672679094674,2.32693382,11.103,11.096,2.32925378]
[1672679095201,0.06693382,11.103,11.098,2.26]
[1672679098667,0.06693382,11.103,11.1,2.26]
[1672679098977,0.07035898,11.105,11.1,2.26]
[1672679099190,0.06075891,11.106,11.1,2.26]
[1672679100348,0.06075891,11.106,11.102,2.26]
[1672679100873,2.26,11.11,11.106,0.07634869]
[1672679101399,2.24,11.113,11.106,2.33634869]
[1672679101821,2.30730777,11.113,11.106,2.40718186]
[1672679104860,0.06730777,11.113,11.108,2.26]
[1672679105808,0.06730777,11.113,11.106,2.40718186]
[1672679110640,2.24,11.107,11.106,0.14718186]
[1672679110851,2.24,11.107,11.106,0.07634869]
[1672679112320,2.26,11.107,11.106,4.869e-05]
[1672679112534,2.26,11.107,11.098,2.26]
[1672679112749,2.25,11.102,11.095,2.26]
[1672679113690,2.31501186,11.102,11.097,5.0]
[1672679116110,2.31501186,11.102,11.096,5.0]
[1672679116636,2.31501186,11.102,11.097,5.29514972]
[1672679127034,2.31501186,11.102,11.096,5.29514972]
[1672679127347,2.31501186,11.102,11.097,5.0]
[1672679130296,2.31501186,11.102,11.095,2.32773925]
[1672679131029,2.31501186,11.102,11.096,5.29544012]
[1672679131240,2.31501186,11.102,11.097,5.0]
[1672679134184,2.31501186,11.102,11.095,2.32773925]
[1672679134920,2.31501186,11.102,11.096,5.29532687]
[1672679135129,2.31501186,11.102,11.097,5.0]
[1672679137227,2.31501186,11.102,11.096,5.0]
[1672679137548,2.31501186,11.102,11.097,5.29537101]
[1672679141121,2.31501186,11.102,11.097,5.0]
[1672679147954,2.31501186,11.102,11.096,5.0]
[1672679148689,2.31501186,11.102,11.097,5.29519823]
[1672679157935,2.31501186,11.102,11.096,5.29519823]
[1672679158148,2.31501186,11.102,11.097,5.0]
[1672679161829,0.06501186,11.102,11.097,7.26]
[1672679166448,0.06501186,11.102,11.097,2.26]
[1672679180100,0.06501186,11.102,11.095,0.06773925]
[1672679180315,0.06501186,11.102,11.098,2.26]
[1672679186513,0.06501186,11.102,11.097,2.26]
[1672679186829,0.06501186,11.102,11.098,2.24]
[1672679201852,2.26,11.104,11.099,7.26]
[1672679203321,2.26,11.104,11.099,2.26]
[1672679207424,2.32472467,11.105,11.1,2.26]
[1672679209316,2.26,11.104,11.099,2.26]
[1672679213942,2.26,11.1,11.098,0.06205318]
[1672679214145,2.26,11.099,11.095,5.06448769]
[1672679214358,2.26,11.099,11.095,0.06448769]
[1672679214568,2.26,11.099,11.096,5.29591379]
[1672679214991,2.26,11.099,11.095,5.36040148]
[1672679217094,2.26,11.096,11.095,5.36040148]
[1672679217304,2.26,11.096,11.092,0.0673762]
[1672679217515,2.26,11.096,11.091,2.24]
[1672679220982,2.26,11.097,11.09,2.32818275]
[1672679221618,2.26,11.093,11.09,0.06818275]
[1672679221934,2.26,11.093,11.088,0.0679759]
[1672679222142,2.26,11.093,11.087,0.07065802]
[1672679222352,2.26,11.093,11.087,5.37511396]
[1672679224033,2.3272172,11.095,11.088,2.26]
[1672679225401,0.0672172,11.095,11.089,2.25]
[1672679225612,0.0672172,11.095,11.09,5.0]
[1672679226450,0.0672172,11.095,11.089,2.25]
[1672679234228,2.3272172,11.095,11.088,2.26]
[1672679234542,2.26,11.093,11.087,0.07065802]
[1672679248939,2.26,11.093,11.087,5.37584937]
[1672679256080,5.0,11.092,11.063,575.0]
[1672679256291,2.25,11.085,11.077,2.25]
[1672679256816,2.26,11.086,11.079,2.26]
[1672679257229,2.3222549,11.086,11.079,2.33087485]
[1672679258182,0.0622549,11.086,11.083,2.25]
[1672679258393,0.06414909,11.088,11.083,2.25]
[1672679258604,0.06483416,11.089,11.083,2.25]
[1672679259127,0.06483416,11.089,11.082,0.0606348]
[1672679259128,2.32483416,11.089,11.082,2.3106348]
[1672679265746,2.26,11.087,11.082,0.0606348]
[1672679266900,2.26,11.088,11.082,0.0606348]
[1672679270470,2.04495742,11.088,11.082,0.0606348]
[1672679270789,0.06483416,11.089,11.087,2.25]
[1672679271001,0.07046705,11.092,11.087,2.25]
[1672679271313,5.06131817,11.093,11.087,2.25]
[1672679271730,0.06131817,11.093,11.087,2.25]
[1672679274046,2.32131817,11.093,11.086,0.0615341]
[1672679274468,2.32131817,11.093,11.086,4.9609752]
[1672679274992,2.26,11.091,11.086,4.9609752]
[1672679275202,2.26,11.091,11.086,0.0615341]
[1672679279622,0.03998948,11.086,11.084,2.26]
[1672679280459,0.03998948,11.086,11.082,2.25]
[1672679285399,0.03998948,11.086,11.083,2.25]
[1672679293492,0.03998948,11.086,11.081,2.3226091]
[1672679294644,0.03998948,11.086,11.085,2.26]
[1672679294961,0.03998948,11.086,11.085,7.26]
[1672679295172,0.03998948,11.086,11.085,12.15876849]
[1672679296014,0.06867848,11.089,11.085,12.15876849]
[1672679296221,0.06867848,11.089,11.087,2.26]
[1672679296431,0.06311641,11.092,11.087,2.26]
[1672679296641,0.06412257,11.093,11.087,2.26]
[1672679298534,2.32412257,11.093,11.086,0.06283788]
[1672679299161,2.32412257,11.093,11.086,4.96209472]
[1672679302736,2.26,11.091,11.086,4.96209472]
[1672679303156,2.26,11.091,11.086,0.06283788]
[1672679309464,2.26,11.091,11.085,4.86209472]
[1672679318187,2.26,11.091,11.084,2.31099755]
[1672679320186,2.26,11.09,11.084,0.06099755]
[1672679320398,5.0,11.089,11.084,0.06099755]
[1672679321448,2.32143904,11.09,11.084,0.06099755]
[1672679323550,2.26,11.088,11.084,0.06099755]
[1672679328381,5.0,11.087,11.08,2.26]
[1672679328798,2.26,11.088,11.08,2.26]
[1672679329330,2.32949063,11.088,11.08,2.26]
[1672679329539,2.32949063,11.088,11.08,2.32702993]
[1672679329750,0.06949063,11.088,11.083,2.25]
[1672679334057,0.06949063,11.088,11.087,2.26]
[1672679334366,0.0710938,11.091,11.087,2.26]
[1672679334583,0.06608744,11.093,11.088,2.26]
[1672679334896,2.25,11.096,11.089,5.0]
[1672679334897,0.0666012,11.094,11.089,5.0]
[1672679335108,0.06806674,11.095,11.089,5.0]
[1672679338887,0.06806674,11.095,11.088,7.32758811]
[1672679339101,0.06806674,11.095,11.088,2.32758811]
[1672679340469,2.25,11.096,11.095,0.09961552]
[1672679342485,2.26,11.098,11.095,0.09961552]
[1672679343639,0.06418144,11.099,11.095,0.09961552]
[1672679351746,2.25,11.105,11.097,2.25]
[1672679352777,2.26,11.103,11.097,0.06429042]
[1672679366330,2.26,11.114,11.102,52.26]
[1672679366643,2.26,11.114,11.097,5.06429042]
[1672679366644,2.26,11.114,11.107,2.26]
[1672679366851,2.26,11.114,11.108,5.0]
[1672679375474,2.26,11.114,11.107,2.32314391]
[1672679377786,0.06389709,11.115,11.107,0.06314391]
[1672679378000,2.26,11.114,11.107,0.06314391]
[1672679387556,0.06389709,11.115,11.108,2.26]
[1672679390715,2.26,11.114,11.107,0.06314391]
[1672679392711,2.31389709,11.115,11.108,2.26]
[1672679397018,0.06389709,11.115,11.109,2.26]
[1672679397231,2.26,11.12,11.115,0.08615852]
[1672679398492,51.50872952,11.121,11.115,0.08615852]
[1672679399645,51.50872952,11.121,11.115,2.33615852]
[1672679403852,2.25,11.119,11.115,0.08615852]
[1672679413311,5.0,11.119,11.115,0.08615852]
[1672679413940,7.26,11.12,11.115,0.08615852]
[1672679414883,2.26,11.12,11.115,0.08615852]
[1672679416460,0.06832952,11.121,11.115,0.08615852]
[1672679416676,0.06832952,11.121,11.116,2.26]
[1672679425395,0.06832952,11.121,11.115,0.08615852]
[1672679425396,2.32832952,11.121,11.115,0.08615852]
[1672679425610,0.06832952,11.121,11.116,2.25]
[1672679427078,0.06832952,11.121,11.115,0.08615852]
[1672679446418,0.06832952,11.121,11.116,2.26]
[1672679456191,0.06832952,11.121,11.115,0.08615852]
[1672679460395,0.06832952,11.121,11.117,2.26]
[1672679473947,2.32832952,11.121,11.115,0.08615852]
[1672679474265,2.26,11.118,11.115,0.08615852]
[1672679478570,2.26,11.117,11.115,0.08615852]
[1672679478886,5.0,11.116,11.109,2.26]
[1672679479100,2.26,11.115,11.109,0.06721409]
[1672679481294,2.26,11.114,11.109,0.06721409]
[1672679481615,2.26,11.11,11.102,2.26]
[1672679481819,2.26,11.106,11.099,2.26]
[1672679482034,2.26,11.105,11.098,2.25]
[1672679482358,324.5,11.113,11.096,7.25]
[1672679482359,2.26,11.103,11.096,7.25]
[1672679482559,2.26,11.103,11.096,2.25]
[1672679482771,2.32486441,11.103,11.096,2.32081922]